fUSD/lending_fUSD_20241216
["ID","MTS","AMOUNT","RATE_DAILY","PERIOD"]
[345591597,1734373833746,-769.47,0.00023397,2]
[345591598,1734373833756,-769.47,0.00023397,2]
[345591599,1734373833766,-436.37,0.00023397,2]
[345591600,1734373833776,-436.37,0.00023397,2]
[345591601,1734373833786,-436.37,0.00023397,2]
[345591602,1734373833796,-769.47,0.00023397,2]
[345591603,1734373833805,-2794.61,0.00023418,2]
[345591604,1734373833815,-150.0,0.00023474,2]
[345591605,1734373833825,-975.93,0.00023474,2]
[345591606,1734373833836,-150.0,0.00023474,2]
[345591607,1734373833846,-975.93,0.00023474,2]
[345591608,1734373833856,-975.93,0.00023474,2]
[345591609,1734373833866,-502.81,0.00023474,2]
[345591610,1734373833877,-500.0,0.00023508,2]
[345591611,1734373833886,-171.76,0.00023508,2]
[345591612,1734373833897,-1500.0,0.00023508,2]
[345591613,1734373833907,-12732.41,0.00023508,2]
[345591614,1734373833917,-150.0,0.0002352,2]
[345591615,1734373833927,-165.09,0.00023578,2]
[345591616,1734373833937,-500.0,0.00023598,2]
[345591617,1734373833948,-200.0,0.0002361,2]
[345591618,1734373833958,-934.25,0.00023644,2]
[345591619,1734373833968,-2282.8,0.00023691,2]
[345591620,1734373833977,-530.357,0.0002375,2]
[345591621,1734373833987,-3668.56899474,0.000238,10]
[345591622,1734373833997,-735.63,0.00023809,2]
[345591623,1734373834007,-42.96788888,0.00023809,2]
[345591624,1734373834020,-442.67725158,0.00023809,2]
[345591626,1734373836497,-319.0924992,0.000199,2]
[345591628,1734373836509,-250.42919101,0.00019979,2]
[345591630,1734373836519,-254.63485954,0.00023809,2]
[345591631,1734373836528,-75.99147503,0.00023822,2]
[345591671,1734373838035,-1067.9459,0.00023822,2]
[345591672,1734373838167,-14.21262497,0.00023822,2]
[345591673,1734373838178,-150.0,0.00023878,2]
[345591674,1734373838192,-1278.35,0.00023878,2]
[345591675,1734373838201,-150.0,0.00023878,2]
[345591676,1734373838211,-799.72,0.00023911,2]
[345591677,1734373838221,-2243.0,0.00023925,2]
[345591678,1734373838231,-2069.76334587,0.00024,2]
[345591679,1734373838241,-662.79,0.00024014,2]
[345591680,1734373838251,-243.0,0.0002405,2]
[345591681,1734373838262,-942.51,0.00024055,2]
[345591682,1734373838272,-2423.464,0.00024079,5]
[345591683,1734373838282,-3000.0,0.000241,2]
[345591684,1734373838292,-200.0,0.000241,2]
[345591685,1734373838302,-165.46,0.00024116,2]
[345591686,1734373838311,-31523.78660194,0.00024223,2]
[345591687,1734373838321,-3882.0,0.0002428,2]
[345591688,1734373838330,-2005.0,0.0002428,2]
[345591689,1734373838340,-150.0,0.0002428,2]
[345591690,1734373838349,-1263.0,0.0002428,2]
[345591691,1734373838359,-10052.99784558,0.000243,14]
[345591692,1734373838370,-436.37,0.00024356,2]
[345591693,1734373838379,-1434.81,0.00024356,2]
[345591694,1734373838390,-436.37,0.00024356,2]
[345591695,1734373838399,-436.37,0.00024356,2]
[345591696,1734373838409,-436.37,0.00024356,2]
[345591697,1734373838418,-431.17,0.00024356,2]
[345591698,1734373838428,-151.0,0.0002438,2]
[345591699,1734373838440,-1056.0,0.00024384,2]
[345591700,1734373838449,-153.0,0.00024496,2]
[345591701,1734373838459,-153.0,0.00024496,2]
[345591702,1734373838469,-153.0,0.00024496,2]
[345591703,1734373838479,-153.0,0.00024496,2]
[345591704,1734373838488,-153.0,0.00024496,2]
[345591705,1734373838498,-3302.673264,0.00024498,2]
[345591706,1734373838512,-1199.13112727,0.00024499,2]
[345591707,1734373838523,-2110.0,0.000245,2]
[345591708,1734373838533,-931.61531972,0.000245,2]
[345591709,1734373838543,-199.4249,0.00024525,2]
[345591710,1734373838552,-243.0,0.0002453,2]
[345591711,1734373838562,-1961.0,0.000246,2]
[345591712,1734373838571,-19586.115234,0.000246,2]
[345591713,1734373838582,-1158.15,0.00024616,2]
[345591714,1734373838592,-422.25836631,0.00024624,2]
[345591715,1734373838601,-77140.00000008,0.00024625,2]
[345591716,1734373838611,-762.39,0.00024657,2]
[345591717,1734373838621,-500.0,0.00024657,4]
[345591718,1734373838630,-500.0,0.00024657,4]
[345591719,1734373838640,-500.0,0.00024657,2]
[345591720,1734373838650,-500.0,0.00024657,2]
[345591721,1734373838659,-500.0,0.00024657,4]
[345591722,1734373838668,-500.0,0.00024657,4]
[345591723,1734373838678,-465.07,0.00024657,4]
[345591724,1734373838690,-884.95,0.00024657,4]
[345591725,1734373838700,-361.74,0.00024657,4]
[345591726,1734373838710,-816.91,0.00024657,4]
[345591727,1734373838723,-500.0,0.00024657,4]
[345591728,1734373838733,-500.0,0.00024657,4]
[345591729,1734373838742,-1530.66,0.00024657,4]
[345591730,1734373838752,-500.0,0.00024657,4]
[345591731,1734373838762,-500.0,0.00024657,4]
[345591732,1734373838771,-254.12286499,0.00024657,4]
[345591733,1734373838781,-319.42578501,0.00024657,4]
[345591734,1734373838791,-500.0,0.00024657,4]
[345591735,1734373838800,-500.0,0.00024657,4]
[345591736,1734373838809,-500.0,0.00024657,4]
[345591737,1734373838818,-528.48,0.00024657,4]
[345591738,1734373838827,-500.0,0.00024657,4]
[345591739,1734373838837,-500.0,0.00024657,4]
[345591740,1734373838847,-746.61099274,0.00024657,4]
[345591741,1734373838856,-500.0,0.00024657,4]
[345591742,1734373838866,-500.0,0.00024657,4]
[345591743,1734373838875,-500.0,0.00024657,4]
[345591744,1734373838886,-500.0,0.00024657,4]
[345591745,1734373838895,-500.0,0.00024657,4]
[345591746,1734373838905,-500.0,0.00024657,4]
[345591747,1734373838914,-500.0,0.00024657,4]
[345591748,1734373838924,-500.0,0.00024657,4]
[345591749,1734373838933,-439.06341765,0.00024657,4]
[345591750,1734373838945,-4517.0,0.00024657,4]
[345591751,1734373838954,-4517.0,0.00024657,4]
[345591752,1734373838963,-2726.68,0.00024657,4]
[345591753,1734373838973,-2726.68,0.00024657,4]
[345591754,1734373838982,-1095.29,0.00024657,4]
[345591755,1734373838992,-572.51,0.00024657,4]
[345591756,1734373839003,-572.51,0.00024657,4]
[345591757,1734373839012,-572.51,0.00024657,4]
[345591758,1734373839022,-572.51,0.00024657,4]
[345591759,1734373839032,-572.51,0.00024657,4]
[345591760,1734373839041,-572.51,0.00024657,4]
[345591761,1734373839051,-4220.99,0.00024657,4]
[345591762,1734373839061,-4220.99,0.00024657,4]
[345591763,1734373839070,-8820.36,0.00024657,4]
[345591764,1734373839080,-570.84,0.00024657,4]
[345591765,1734373839090,-8820.36,0.00024657,4]
[345591766,1734373839099,-570.84,0.00024657,4]
[345591767,1734373839109,-570.84,0.00024657,4]
[345591769,1734373839119,-570.84,0.00024657,4]
[345591770,1734373839128,-558.10497019,0.00024657,4]
[345591771,1734373839142,-12.73502981,0.00024657,4]
[345591772,1734373839152,-570.84,0.00024657,4]
[345591773,1734373839162,-217.3,0.00024657,4]
[345591774,1734373839172,-385.52,0.00024657,4]
[345591775,1734373839182,-587.47,0.00024657,4]
[345591776,1734373839192,-587.47,0.00024657,4]
[345591777,1734373839202,-322.66497019,0.00024657,4]
[345591778,1734373839214,-177.33502981,0.00024657,4]
[345591779,1734373839224,-153.080297,0.00024657,4]
[345591780,1734373839233,-4157.25,0.00024657,4]
[345591781,1734373839242,-4157.25,0.00024657,4]
[345591782,1734373839252,-161.535482,0.00024657,4]
[345591783,1734373839261,-157.99876,0.00024657,4]
[345591784,1734373839271,-157.99876,0.00024657,4]
[345591785,1734373839282,-500.0,0.00024657,4]
[345591786,1734373839291,-500.0,0.00024657,4]
[345591787,1734373839300,-500.0,0.00024657,4]
[345591788,1734373839310,-500.0,0.00024657,4]
[345591789,1734373839319,-500.0,0.00024657,4]
[345591790,1734373839328,-613.97,0.00024657,4]
[345591791,1734373839337,-428.93353737,0.00024657,4]
[345591792,1734373839348,-613.97,0.00024657,4]
[345591793,1734373839357,-613.97,0.00024657,4]
[345591794,1734373839366,-613.97,0.00024657,4]
[345591795,1734373839375,-613.97,0.00024657,4]
[345591796,1734373839385,-613.97,0.00024657,4]
[345591797,1734373839394,-500.0,0.00024657,4]
[345591798,1734373839403,-520.80975774,0.00024657,4]
[345591799,1734373839413,-500.0,0.00024657,4]
[345591800,1734373839423,-500.0,0.00024657,4]
[345591801,1734373839433,-500.0,0.00024657,4]
[345591802,1734373839443,-500.0,0.00024657,4]
[345591803,1734373839453,-496.65,0.00024657,4]
[345591804,1734373839463,-536.93,0.00024657,4]
[345591805,1734373839472,-536.93,0.00024657,4]
[345591806,1734373839482,-536.93,0.00024657,4]
[345591807,1734373839492,-536.93,0.00024657,4]
[345591808,1734373839503,-500.0,0.00024657,4]
[345591809,1734373839516,-536.93,0.00024657,4]
[345591810,1734373839525,-354.33469649,0.00024657,4]
[345591811,1734373839534,-500.0,0.00024657,4]
[345591812,1734373839546,-536.93,0.00024657,4]
[345591813,1734373839557,-500.0,0.00024657,4]
[345591814,1734373839567,-500.0,0.00024657,4]
[345591815,1734373839579,-407.06,0.00024657,4]
[345591816,1734373839588,-500.0,0.00024699,4]
[345591817,1734373839598,-2141.94467101,0.00024699,4]
[345591818,1734373839620,-2375.05532899,0.00024699,4]
[345591819,1734373839629,-2726.68,0.00024699,4]
[345591820,1734373839638,-4220.99,0.00024699,4]
[345591821,1734373839649,-8820.36,0.00024699,4]
[345591822,1734373839660,-587.47,0.00024699,4]
[345591823,1734373839670,-4157.25,0.00024699,4]
[345591824,1734373839680,-157.99876,0.00024699,4]
[345591825,1734373839689,-14830.3652,0.000247,2]
[345591826,1734373839699,-799.72,0.00024707,2]
[345591827,1734373839709,-316.45,0.0002475,2]
[345591828,1734373839719,-3000.0,0.0002475,2]
[345591829,1734373839728,-1000.0,0.00024757,2]
[345591830,1734373839738,-500.0,0.00024773,2]
[345591831,1734373839747,-193.41105487,0.00024787,2]
[345591832,1734373839757,-500.0,0.00024787,4]
[345591833,1734373839766,-271.47733604,0.00024787,4]
[345591834,1734373839776,-500.0,0.00024787,4]
[345591837,1734373839786,-500.0,0.00024787,4]
[345591838,1734373839796,-500.0,0.00024787,4]
[345591839,1734373839805,-549.69,0.00024787,4]
[345591840,1734373839815,-4517.0,0.00024787,4]
[345591841,1734373839825,-2726.68,0.00024787,4]
[345591843,1734373839835,-1095.29,0.00024787,4]
[345591845,1734373839844,-1095.29,0.00024787,4]
[345591846,1734373839854,-572.51,0.00024787,4]
[345591847,1734373839863,-4220.99,0.00024787,4]
[345591848,1734373839873,-8820.36,0.00024787,4]
[345591849,1734373839882,-570.84,0.00024787,4]
[345591850,1734373839892,-587.47,0.00024787,4]
[345591851,1734373839902,-4157.25,0.00024787,4]
[345591853,1734373839911,-161.535482,0.00024787,4]
[345591855,1734373839920,-157.99876,0.00024787,4]
[345591858,1734373839929,-613.97,0.00024787,4]
[345591860,1734373839940,-536.93,0.00024787,4]
[345591862,1734373839950,-268000.0,0.00024788,45]
[345591864,1734373839960,-572.51,0.00024799,4]
[345591866,1734373839969,-570.84,0.00024799,4]
[345591868,1734373839978,-613.97,0.00024799,4]
[345591870,1734373839988,-536.93,0.00024799,4]
[345591872,1734373839997,-16364.44110887,0.000248,2]
[345591874,1734373840007,-187950.69962355,0.000248,2]
[345591876,1734373840016,-4083.20361331,0.000248,2]
[345591877,1734373840026,-157.71978288,0.000248,2]
[345591878,1734373840036,-423.26225898,0.00024834,10]
[345591879,1734373840045,-423.26225898,0.0002484,10]
[345591880,1734373840055,-423.26225898,0.00024847,10]
[345591881,1734373840065,-423.26225898,0.00024854,10]
[345591882,1734373840075,-535.30564344,0.00024862,2]
[345591883,1734373840084,-592.70402534,0.00024873,2]
[345591884,1734373840094,-500.0,0.00024873,2]
[345591885,1734373840103,-800.0,0.00024877,2]
[345591886,1734373840113,-500.0,0.00024878,4]
[345591887,1734373840122,-500.0,0.00024879,4]
[345591888,1734373840132,-500.0,0.00024879,4]
[345591889,1734373840141,-500.0,0.00024879,4]
[345591890,1734373840151,-500.0,0.00024879,4]
[345591891,1734373840162,-500.0,0.00024879,4]
[345591892,1734373840173,-500.0,0.00024879,4]
[345591893,1734373840182,-500.0,0.00024879,4]
[345591894,1734373840194,-457.34,0.00024879,4]
[345591895,1734373840205,-884.95,0.00024879,4]
[345591896,1734373840215,-884.95,0.00024879,4]
[345591897,1734373840367,-884.95,0.00024879,4]
[345591898,1734373840377,-816.91,0.00024879,4]
[345591899,1734373840387,-816.91,0.00024879,4]
[345591900,1734373840397,-816.91,0.00024879,4]
[345591901,1734373840406,-1530.66,0.00024879,4]
[345591902,1734373840416,-1530.66,0.00024879,4]
[345591903,1734373840425,-1530.66,0.00024879,4]
[345591904,1734373840435,-500.0,0.00024879,4]
[345591905,1734373840453,-500.0,0.00024879,4]
[345591906,1734373840462,-500.0,0.00024879,4]
[345591907,1734373840471,-500.0,0.00024879,4]
[345591908,1734373840480,-500.0,0.00024879,4]
[345591909,1734373840490,-500.0,0.00024879,4]
[345591910,1734373840504,-500.0,0.00024879,4]
[345591911,1734373840514,-500.0,0.00024879,4]
[345591912,1734373840523,-500.0,0.00024879,4]
[345591913,1734373840533,-500.0,0.00024879,4]
[345591914,1734373840542,-500.0,0.00024879,4]
[345591915,1734373840555,-500.0,0.00024879,4]
[345591916,1734373840566,-500.0,0.00024879,4]
[345591917,1734373840575,-4517.0,0.00024879,4]
[345591918,1734373840586,-4517.0,0.00024879,4]
[345591919,1734373840597,-4517.0,0.00024879,4]
[345591920,1734373840606,-2726.68,0.00024879,4]
[345591921,1734373840615,-2726.68,0.00024879,4]
[345591922,1734373840625,-2726.68,0.00024879,4]
[345591923,1734373840635,-1095.29,0.00024879,4]
[345591924,1734373840644,-1095.29,0.00024879,4]
[345591925,1734373840654,-1095.29,0.00024879,4]
[345591926,1734373840663,-572.51,0.00024879,4]
[345591928,1734373840673,-572.51,0.00024879,4]
[345591929,1734373840683,-572.51,0.00024879,4]
[345591930,1734373840693,-4220.99,0.00024879,4]
[345591931,1734373840702,-4220.99,0.00024879,4]
[345591932,1734373840712,-4220.99,0.00024879,4]
[345591933,1734373840722,-8820.36,0.00024879,4]
[345591934,1734373840731,-8820.36,0.00024879,4]
[345591935,1734373840740,-8820.36,0.00024879,4]
[345591936,1734373840750,-570.84,0.00024879,4]
[345591937,1734373840759,-570.84,0.00024879,4]
[345591938,1734373840769,-570.84,0.00024879,4]
[345591939,1734373840778,-587.47,0.00024879,4]
[345591940,1734373840788,-587.47,0.00024879,4]
[345591941,1734373840798,-587.47,0.00024879,4]
[345591942,1734373840807,-4157.25,0.00024879,4]
[345591943,1734373840816,-999.0,0.00024879,2]
[345591944,1734373840826,-4157.25,0.00024879,4]
[345591945,1734373840835,-4157.25,0.00024879,4]
[345591946,1734373840845,-161.535482,0.00024879,4]
[345591947,1734373840854,-500.0,0.00024879,4]
[345591948,1734373840864,-157.99876,0.00024879,4]
[345591949,1734373840873,-500.0,0.00024879,4]
[345591950,1734373840882,-157.99876,0.00024879,4]
[345591951,1734373840892,-157.71230115,0.00024879,4]
[345591952,1734373840901,-157.99876,0.00024879,4]
[345591953,1734373840910,-613.97,0.00024879,4]
[345591954,1734373840919,-613.97,0.00024879,4]
[345591955,1734373840928,-613.97,0.00024879,4]
[345591956,1734373840940,-500.0,0.00024879,4]
[345591957,1734373840950,-500.0,0.00024879,4]
[345591958,1734373840959,-500.0,0.00024879,4]
[345591959,1734373840968,-536.93,0.00024879,4]
[345591960,1734373840978,-423.26225898,0.00024879,10]
[345591961,1734373840987,-697061.32529727,0.0002488,2]
[345591962,1734373840996,-165.09,0.00024887,2]
[345591963,1734373841005,-423.26225898,0.00024888,10]
[345591964,1734373841015,-572.51,0.00024893,4]
[345591965,1734373841025,-570.84,0.00024893,4]
[345591966,1734373841035,-613.97,0.00024893,4]
[345591967,1734373841045,-29393.56990341,0.00024894,30]
[345591968,1734373841054,-1000.0,0.00024897,2]
[345591969,1734373841064,-500.0,0.00024899,2]
[345591970,1734373841073,-928.98250385,0.00024899,2]
[345591971,1734373841083,-29984.61438313,0.00024899,2]
[345591972,1734373841093,-218.02,0.000249,31]
[345591973,1734373841102,-218.02,0.000249,31]
[345591974,1734373841112,-218.02,0.000249,31]
[345591975,1734373841121,-218.02,0.000249,31]
[345591976,1734373841130,-218.02,0.000249,31]
[345591977,1734373841139,-218.02,0.000249,31]
[345591978,1734373841149,-218.02,0.000249,31]
[345591979,1734373841158,-218.02,0.000249,31]
[345591980,1734373841168,-218.02,0.000249,31]
[345591981,1734373841178,-218.02,0.000249,31]
[345591982,1734373841189,-218.02,0.000249,31]
[345591983,1734373841198,-218.02,0.000249,31]
[345591984,1734373841208,-218.02,0.000249,31]
[345591985,1734373841217,-218.02,0.000249,31]
[345591986,1734373841226,-218.02,0.000249,31]
[345591987,1734373841236,-218.02,0.000249,31]
[345591988,1734373841246,-500.0,0.00024972,4]
[345591989,1734373841255,-500.0,0.00024973,2]
[345591990,1734373841264,-315.28,0.0002498,2]
[345591991,1734373841273,-8863.74847901,0.00024997,14]
[345591992,1734373841283,-614.98,0.00024998,4]
[345591993,1734373841291,-549.07,0.00024998,4]
[345591994,1734373841301,-500.0,0.00024998,4]
[345591995,1734373841310,-500.0,0.00024998,4]
[345591996,1734373841320,-500.0,0.00024998,4]
[345591997,1734373841329,-587.52,0.00024998,2]
[345591998,1734373841338,-1000.0,0.00024998,2]
[345591999,1734373841348,-500.0,0.00024998,4]
[345592000,1734373841358,-500.0,0.00024998,2]
[345592001,1734373841367,-500.0,0.00024998,4]
[345592002,1734373841377,-500.0,0.00024998,4]
[345592003,1734373841387,-884.95,0.00024998,4]
[345592004,1734373841396,-816.91,0.00024998,4]
[345592005,1734373841406,-1530.66,0.00024998,4]
[345592006,1734373841415,-500.0,0.00024998,4]
[345592007,1734373841424,-500.0,0.00024998,4]
[345592008,1734373841433,-501.59248202,0.00024998,4]
[345592009,1734373841443,-500.0,0.00024998,4]
[345592010,1734373841452,-4517.0,0.00024998,4]
[345592011,1734373841462,-4517.0,0.00024998,4]
[345592012,1734373841471,-2726.68,0.00024998,4]
[345592013,1734373841480,-2726.68,0.00024998,4]
[345592014,1734373841490,-572.51,0.00024998,4]
[345592015,1734373841499,-572.51,0.00024998,4]
[345592016,1734373841510,-4220.99,0.00024998,4]
[345592017,1734373841520,-4220.99,0.00024998,4]
[345592018,1734373841530,-8820.36,0.00024998,4]
[345592019,1734373841539,-8820.36,0.00024998,4]
[345592020,1734373841550,-570.84,0.00024998,4]
[345592021,1734373841559,-570.84,0.00024998,4]
[345592022,1734373841569,-587.47,0.00024998,4]
[345592023,1734373841580,-587.47,0.00024998,4]
[345592024,1734373841590,-4157.25,0.00024998,4]
[345592025,1734373841600,-4157.25,0.00024998,4]
[345592026,1734373841609,-157.99876,0.00024998,4]
[345592027,1734373841618,-157.99876,0.00024998,4]
[345592028,1734373841628,-613.97,0.00024998,4]
[345592029,1734373841638,-613.97,0.00024998,4]
[345592030,1734373841648,-500.0,0.00024998,4]
[345592031,1734373841658,-300.0,0.00024999,10]
[345592032,1734373841669,-300.0,0.00024999,10]
[345592033,1734373841678,-150.0,0.00024999,30]
[345592034,1734373841687,-332.04,0.00024999,4]
[345592035,1734373841697,-153.5,0.00024999,4]
[345592036,1734373841706,-520.94,0.00024999,4]
[345592037,1734373841715,-811.38,0.00024999,2]
[345592038,1734373841725,-1000.0,0.00024999,2]
[345592039,1734373841734,-1000.0,0.00024999,2]
[345592040,1734373841743,-1000.0,0.00024999,2]
[345592041,1734373841752,-1000.0,0.00024999,2]
[345592042,1734373841761,-1000.0,0.00024999,2]
[345592043,1734373841770,-1000.0,0.00024999,2]
[345592044,1734373841779,-500.0,0.00024999,4]
[345592045,1734373841789,-500.0,0.00024999,4]
[345592046,1734373841798,-500.0,0.00024999,4]
[345592047,1734373841807,-181.71297436,0.00024999,4]
[345592048,1734373841816,-9743.57,0.00024999,2]
[345592049,1734373841825,-501.07825624,0.00024999,2]
[345592050,1734373841835,-500.0,0.00024999,4]
[345592051,1734373841844,-154.02,0.00024999,4]
[345592052,1734373841854,-1000.0,0.00024999,2]
[345592053,1734373841863,-2000.0,0.00024999,2]
[345592054,1734373841873,-884.95,0.00024999,4]
[345592055,1734373841884,-884.95,0.00024999,4]
[345592056,1734373841893,-884.95,0.00024999,4]
[345592057,1734373841903,-884.95,0.00024999,4]
[345592058,1734373841913,-884.95,0.00024999,4]
[345592059,1734373841922,-884.95,0.00024999,4]
[345592060,1734373841932,-884.95,0.00024999,4]
[345592061,1734373841943,-884.95,0.00024999,4]
[345592062,1734373841953,-884.95,0.00024999,4]
[345592063,1734373841962,-884.95,0.00024999,4]
[345592064,1734373841971,-884.95,0.00024999,4]
[345592065,1734373841980,-884.95,0.00024999,4]
[345592066,1734373841989,-884.95,0.00024999,4]
[345592067,1734373841999,-884.95,0.00024999,4]
[345592068,1734373842008,-884.95,0.00024999,4]
[345592069,1734373842017,-884.95,0.00024999,4]
[345592070,1734373842026,-884.95,0.00024999,4]
[345592071,1734373842035,-884.95,0.00024999,4]
[345592072,1734373842044,-885.14999999,0.00024999,4]
[345592073,1734373842054,-816.91,0.00024999,4]
[345592074,1734373842063,-816.91,0.00024999,4]
[345592075,1734373842073,-816.91,0.00024999,4]
[345592076,1734373842083,-816.91,0.00024999,4]
[345592077,1734373842092,-816.91,0.00024999,4]
[345592078,1734373842101,-816.91,0.00024999,4]
[345592079,1734373842110,-816.91,0.00024999,4]
[345592080,1734373842120,-816.91,0.00024999,4]
[345592081,1734373842129,-816.91,0.00024999,4]
[345592082,1734373842138,-816.91,0.00024999,4]
[345592083,1734373842149,-816.91,0.00024999,4]
[345592084,1734373842158,-816.91,0.00024999,4]
[345592085,1734373842167,-816.91,0.00024999,4]
[345592086,1734373842176,-816.91,0.00024999,4]
[345592087,1734373842185,-816.91,0.00024999,4]
[345592088,1734373842196,-816.91,0.00024999,4]
[345592089,1734373842205,-816.91,0.00024999,4]
[345592090,1734373842214,-816.91,0.00024999,4]
[345592091,1734373842223,-816.99417844,0.00024999,4]
[345592092,1734373842233,-1530.66,0.00024999,4]
[345592093,1734373842243,-1530.66,0.00024999,4]
[345592094,1734373842252,-1530.66,0.00024999,4]
[345592095,1734373842261,-1530.66,0.00024999,4]
[345592096,1734373842271,-1530.66,0.00024999,4]
[345592097,1734373842280,-1530.66,0.00024999,4]
[345592098,1734373842290,-1530.66,0.00024999,4]
[345592099,1734373842299,-1530.66,0.00024999,4]
[345592100,1734373842308,-1530.66,0.00024999,4]
[345592101,1734373842317,-1530.66,0.00024999,4]
[345592102,1734373842326,-1530.66,0.00024999,4]
[345592103,1734373842335,-1530.66,0.00024999,4]
[345592104,1734373842345,-1530.66,0.00024999,4]
[345592105,1734373842354,-1530.66,0.00024999,4]
[345592106,1734373842363,-262.08,0.00024999,4]
[345592107,1734373842372,-1530.66,0.00024999,4]
[345592108,1734373842382,-1530.66,0.00024999,4]
[345592109,1734373842391,-1530.66,0.00024999,4]
[345592110,1734373842401,-1530.66,0.00024999,4]
[345592111,1734373842411,-1530.73,0.00024999,4]
[345592112,1734373842420,-500.0,0.00024999,4]
[345592113,1734373842429,-500.0,0.00024999,4]
[345592114,1734373842440,-162.32,0.00024999,4]
[345592115,1734373842450,-500.0,0.00024999,4]
[345592116,1734373842459,-500.0,0.00024999,4]
[345592117,1734373842469,-500.0,0.00024999,4]
[345592118,1734373842478,-500.0,0.00024999,4]
[345592119,1734373842487,-500.0,0.00024999,4]
[345592120,1734373842497,-500.0,0.00024999,4]
[345592121,1734373842509,-500.0,0.00024999,4]
[345592122,1734373842519,-500.0,0.00024999,4]
[345592123,1734373842529,-500.0,0.00024999,4]
[345592124,1734373842539,-500.0,0.00024999,4]
[345592125,1734373842550,-500.0,0.00024999,4]
[345592126,1734373842559,-500.0,0.00024999,4]
[345592127,1734373842569,-500.0,0.00024999,4]
[345592128,1734373842579,-500.0,0.00024999,4]
[345592129,1734373842589,-500.0,0.00024999,4]
[345592130,1734373842600,-500.0,0.00024999,4]
[345592131,1734373842609,-500.0,0.00024999,4]
[345592132,1734373842621,-628.96290793,0.00024999,4]
[345592133,1734373842630,-500.0,0.00024999,4]
[345592134,1734373842639,-500.0,0.00024999,4]
[345592135,1734373842649,-500.0,0.00024999,4]
[345592136,1734373842659,-500.0,0.00024999,4]
[345592137,1734373842669,-500.0,0.00024999,4]
[345592138,1734373842678,-500.0,0.00024999,4]
[345592139,1734373842687,-500.0,0.00024999,4]
[345592140,1734373842697,-500.0,0.00024999,4]
[345592141,1734373842707,-500.0,0.00024999,4]
[345592142,1734373842716,-500.0,0.00024999,4]
[345592143,1734373842726,-500.0,0.00024999,4]
[345592144,1734373842737,-500.0,0.00024999,4]
[345592145,1734373842746,-569.47858377,0.00024999,4]
[345592146,1734373842756,-1238.0675,0.00024999,2]
[345592147,1734373842765,-4517.0,0.00024999,4]
[345592148,1734373842775,-4517.0,0.00024999,4]
[345592149,1734373842784,-4517.0,0.00024999,4]
[345592150,1734373842796,-4517.0,0.00024999,4]
[345592151,1734373842805,-4517.0,0.00024999,4]
[345592152,1734373842815,-4517.0,0.00024999,4]
[345592153,1734373842825,-4517.0,0.00024999,4]
[345592154,1734373842835,-4517.0,0.00024999,4]
[345592155,1734373842845,-4517.0,0.00024999,4]
[345592156,1734373842854,-4517.0,0.00024999,4]
[345592157,1734373842863,-4517.0,0.00024999,4]